[Event "Kupreichik Memorial Open 2018"]
[Site "Minsk"]
[Date "2018.06.23"]
[Round "11"]
[White "Kruglikova, Viktorija"]
[Black "Svjatocho, Andrej"]
[Result "1-0"]
[ECO "B02"]
[WhiteElo "1839"]
[BlackElo "1979"]
[Annotator "NA"]
[PlyCount "109"]
[EventDate "2018.06.21"]
[EventCountry "BLR"]
[SourceTitle "playchess.com"]
[Source "ChessBase"]
[SourceQuality "1"]
[TimeControl "900+10"]

1. e4 {[%emt 0:00:00]} Nf6 {[%emt 0:00:04]} 2. e5 {[%emt 0:00:00]} Nd5 {[%emt 0:00:02]} 3. c4 {[%emt 0:00:00]} Nb6 {[%emt 0:00:01]} 4. d4 {[%emt 0:00:00]} d6 {[%emt 0:00:02]} 5. Nf3 {[%emt 0:00:07]} Bg4 {[%emt 0:01:11]} 6. exd6 {[%emt 0:00:03]} exd6 {[%emt 0:00:03]} 7. Be2 {[%emt 0:00:01]} Be7 {[%emt 0:00:16]} 8. O-O {[%emt 0:00:02]} O-O {[%emt 0:00:07]} 9. Be3 {[%emt 0:00:13]} Bf6 {[%emt 0:00:07]} 10. Nbd2 {[%emt 0:00:30]} d5 {[%emt 0:00:47]} 11. c5 {[%emt 0:00:13]} Nc8 {[%emt 0:00:03]} 12. h3 {[%emt 0:00:02]} Bf5 {[%emt 0:00:39]} 13. Qb3 {[%emt 0:00:02]} b6 {[%emt 0:00:12]} 14. Rac1 {[%emt 0:00:04]} c6 {[%emt 0:00:27]} 15. Rfe1 {[%emt 0:00:18]} Ne7 {[%emt 0:00:33]} 16. Nf1 {[%emt 0:00:09]} Nd7 {[%emt 0:00:15]} 17. cxb6 {[%emt 0:00:17]} axb6 {[%emt 0:00:06]} 18. Ng3 {[%emt 0:00:02]} Bg6 {[%emt 0:00:05]} 19. a3 {[%emt 0:00:10]} Qb8 {[%emt 0:01:56]} 20. Nh2 {[%emt 0:01:27]} Bh4 {[%emt 0:00:46]} 21. Nhf1 {[%emt 0:01:06]} Qd6 {[%emt 0:00:34]} 22. Bd3 {[%emt 0:01:30]} c5 {[%emt 0:02:02]} 23. Bxg6 {[%emt 0:00:04]} hxg6 {[%emt 0:00:15]} 24. Qc2 {[%emt 0:01:06]} Rac8 {[%emt 0:00:31]} 25. Qe2 {[%emt 0:00:02]} Bf6 {[%emt 0:00:34]} 26. Qg4 {[%emt 0:00:14]} Nc6 {[%emt 0:00:52]} 27. Bf4 {[%emt 0:00:19]} Be5 {[%emt 0:01:37]} 28. dxe5 {[%emt 0:00:04]} Qe7 {[%emt 0:00:17]} 29. e6 {[%emt 0:00:18]} fxe6 {[%emt 0:00:04]} 30. Bg5 {[%emt 0:00:09]} Qf7 {[%emt 0:00:39]} 31. Qxe6 {[%emt 0:00:04]} Nd4 {[%emt 0:00:15]} 32. Qxf7+ {[%emt 0:00:10]} Rxf7 {[%emt 0:00:02]} 33. Ne3 {[%emt 0:00:09]} Ne6 {[%emt 0:00:21]} 34. h4 {[%emt 0:00:01]} d4 {[%emt 0:00:05]} 35. Nc4 {[%emt 0:00:02]} Rc6 {[%emt 0:00:28]} 36. Ne5 {[%emt 0:00:13]} Nxe5 {[%emt 0:00:04]} 37. Rxe5 {[%emt 0:00:02]} Rd7 {[%emt 0:00:15]} 38. Bd2 {[%emt 0:00:09]} c4 {[%emt 0:00:29]} 39. Rce1 {[%emt 0:00:03]} Nc5 {[%emt 0:00:08]} 40. Re8+ {[%emt 0:00:40]} Kf7 {[%emt 0:00:10]} 41. Bg5 {[%emt 0:00:01]} d3 {[%emt 0:00:23]} 42. Bd2 {[%emt 0:03:19]} Na4 {[%emt 0:00:46]} 43. Bb4 {[%emt 0:00:29]} g5 {[%emt 0:00:02]} 44. h5 {[%emt 0:00:01]} Nc5 {[%emt 0:00:19]} 45. Nf1 {[%emt 0:00:33]} Re6 {[%emt 0:01:04]} 46. R8xe6 {[%emt 0:00:14]} Nxe6 {[%emt 0:00:03]} 47. Nd2 {[%emt 0:00:02]} b5 {[%emt 0:00:09]} 48. a4 {[%emt 0:00:08]} bxa4 {[%emt 0:00:07]} 49. Nxc4 {[%emt 0:00:06]} Rd4 {[%emt 0:00:29]} 50. Ne5+ {[%emt 0:00:02]} Kf6 {[%emt 0:00:03]} 51. Bc3 {[%emt 0:01:02]} d2 {[%emt 0:00:23]} 52. Rd1 {[%emt 0:00:01]} Kxe5 {[%emt 0:00:45]} 53. Rxd2 {[%emt 0:00:01]} Kd5 {[%emt 0:00:21]} 54. Bxd4 {[%emt 0:00:02]} Nxd4 {[%emt 0:00:02]} 55. Kh2 {[%emt 0:00:01]} 1-0

[Event "Kupreichik Memorial Open 2018"]
[Site "Minsk"]
[Date "2018.06.23"]
[Round "11"]
[White "Shvedau, Mikhail"]
[Black "Sadovnikov, Konstantin"]
[Result "1-0"]
[ECO "A01"]
[WhiteElo "1742"]
[BlackElo "1907"]
[Annotator "NA"]
[PlyCount "63"]
[EventDate "2018.06.21"]
[EventCountry "BLR"]
[SourceTitle "playchess.com"]
[Source "ChessBase"]
[SourceQuality "1"]
[TimeControl "900+10"]

1. b3 {[%emt 0:00:00]} c5 {[%emt 0:00:02]} 2. Bb2 {[%emt 0:00:00]} Nc6 {[%emt 0:00:01]} 3. e3 {[%emt 0:00:02]} Nf6 {[%emt 0:00:05]} 4. d4 {[%emt 0:00:11]} cxd4 {[%emt 0:00:05]} 5. exd4 {[%emt 0:00:02]} d5 {[%emt 0:00:01]} 6. c4 {[%emt 0:00:21]} e6 {[%emt 0:00:02]} 7. Nf3 {[%emt 0:00:49]} Bb4+ {[%emt 0:00:05]} 8. Nbd2 {[%emt 0:00:02]} O-O {[%emt 0:00:02]} 9. Bd3 {[%emt 0:00:06]} h6 {[%emt 0:00:17]} 10. O-O {[%emt 0:00:07]} b6 {[%emt 0:00:07]} 11. Rc1 {[%emt 0:00:21]} Bb7 {[%emt 0:00:01]} 12. a3 {[%emt 0:00:04]} Be7 {[%emt 0:00:01]} 13. Bb1 {[%emt 0:00:06]} Rc8 {[%emt 0:00:01]} 14. Qc2 {[%emt 0:00:11]} g6 {[%emt 0:00:01]} 15. Ne5 {[%emt 0:00:05]} Nxe5 {[%emt 0:00:17]} 16. dxe5 {[%emt 0:00:02]} Nd7 {[%emt 0:00:27]} 17. Qd3 {[%emt 0:00:21]} Nc5 {[%emt 0:00:26]} 18. Qg3 {[%emt 0:00:07]} Kg7 {[%emt 0:00:13]} 19. b4 {[%emt 0:00:36]} Na4 {[%emt 0:02:08]} 20. Ba1 {[%emt 0:00:05]} dxc4 {[%emt 0:00:02]} 21. Nxc4 {[%emt 0:00:24]} Ba6 {[%emt 0:01:57]} 22. Nd6 {[%emt 0:00:56]} Rc7 {[%emt 0:04:28]} 23. Nxf7 {[%emt 0:02:04]} Rxf7 {[%emt 0:00:03]} 24. Bxg6 {[%emt 0:00:41]} Bxf1 {[%emt 0:00:22]} 25. Bxf7+ {[%emt 0:01:17]} Kxf7 {[%emt 0:00:09]} 26. Qf3+ {[%emt 0:00:21]} Kg7 {[%emt 0:00:13]} 27. Qg4+ {[%emt 0:00:40]} Kh8 {[%emt 0:00:27]} 28. Rxc7 {[%emt 0:00:20]} Qxc7 {[%emt 0:00:07]} 29. Qxe6 {[%emt 0:00:05]} Bd3 {[%emt 0:03:18]} 30. Qxh6+ {[%emt 0:00:06]} Kg8 {[%emt 0:00:01]} 31. e6 {[%emt 0:00:20]} Bf8 {[%emt 0:01:48]} 32. Qh8# 1-0

[Event "Kupreichik Memorial Open 2018"]
[Site "Minsk"]
[Date "2018.06.23"]
[Round "11"]
[White "Korniichuk, Oleksandra"]
[Black "Polovkov, Valery"]
[Result "1/2-1/2"]
[ECO "B90"]
[WhiteElo "1740"]
[BlackElo "1830"]
[Annotator "NA"]
[PlyCount "161"]
[EventDate "2018.06.21"]
[EventCountry "BLR"]
[SourceTitle "playchess.com"]
[Source "ChessBase"]
[SourceQuality "1"]
[TimeControl "900+10"]

1. e4 {[%emt 0:00:00]} c5 {[%emt 0:00:49]} 2. Nf3 {[%emt 0:00:00]} d6 {[%emt 0:00:01]} 3. d4 {[%emt 0:00:00]} cxd4 {[%emt 0:00:01]} 4. Nxd4 {[%emt 0:00:00]} Nf6 {[%emt 0:00:01]} 5. Nc3 a6 6. Be3 {[%emt 0:00:03]} e5 {[%emt 0:00:06]} 7. Nb3 {[%emt 0:00:03]} Be6 {[%emt 0:00:01]} 8. Be2 {[%emt 0:00:04]} Be7 {[%emt 0:00:02]} 9. O-O {[%emt 0:00:03]} b5 {[%emt 0:00:17]} 10. f3 {[%emt 0:00:37]} Nbd7 {[%emt 0:00:03]} 11. Qd2 {[%emt 0:00:10]} Nb6 {[%emt 0:00:07]} 12. Rad1 {[%emt 0:00:35]} Nc4 {[%emt 0:00:31]} 13. Qc1 {[%emt 0:00:08]} Nxe3 {[%emt 0:00:13]} 14. Qxe3 {[%emt 0:00:02]} Qc7 {[%emt 0:00:13]} 15. Kh1 {[%emt 0:00:45]} O-O {[%emt 0:00:12]} 16. Qd2 {[%emt 0:00:04]} Rac8 {[%emt 0:00:39]} 17. Rc1 {[%emt 0:00:17]} Bc4 {[%emt 0:00:17]} 18. Bxc4 {[%emt 0:01:28]} bxc4 {[%emt 0:00:31]} 19. Na1 {[%emt 0:00:06]} Rfd8 {[%emt 0:00:24]} 20. Nd5 {[%emt 0:00:08]} Nxd5 {[%emt 0:00:02]} 21. Qxd5 {[%emt 0:00:03]} Bg5 {[%emt 0:01:01]} 22. Rb1 {[%emt 0:01:23]} Qb6 {[%emt 0:01:26]} 23. b4 {[%emt 0:02:12]} Qd4 {[%emt 0:03:57]} 24. Rfd1 {[%emt 0:02:36]} Qc3 {[%emt 0:00:10]} 25. a4 {[%emt 0:00:31]} Be3 {[%emt 0:00:51]} 26. Qb7 {[%emt 0:00:38]} Ra8 {[%emt 0:00:29]} 27. Qc7 {[%emt 0:00:30]} Bd4 {[%emt 0:00:21]} 28. b5 {[%emt 0:00:04]} axb5 {[%emt 0:01:39]} 29. axb5 {[%emt 0:00:03]} Qa5 {[%emt 0:01:09]} 30. Qxa5 {[%emt 0:01:21]} Rxa5 {[%emt 0:00:04]} 31. c3 {[%emt 0:01:00]} Bc5 {[%emt 0:00:05]} 32. Nc2 {[%emt 0:00:25]} Rb8 {[%emt 0:00:01]} 33. b6 {[%emt 0:00:14]} Ra6 {[%emt 0:00:06]} 34. h3 {[%emt 0:02:54]} Raxb6 {[%emt 0:00:06]} 35. Nb4 {[%emt 0:00:26]} g6 {[%emt 0:00:06]} 36. Ra1 {[%emt 0:00:09]} Bxb4 {[%emt 0:00:29]} 37. cxb4 {[%emt 0:00:01]} Rc6 {[%emt 0:00:09]} 38. Ra4 {[%emt 0:01:21]} c3 {[%emt 0:00:06]} 39. Rc1 {[%emt 0:00:04]} Rc4 {[%emt 0:00:14]} 40. Ra3 {[%emt 0:00:11]} Rbxb4 {[%emt 0:01:49]} 41. Raxc3 {[%emt 0:00:04]} Rxc3 {[%emt 0:00:04]} 42. Rxc3 {[%emt 0:00:01]} Rb1+ {[%emt 0:00:06]} 43. Kh2 {[%emt 0:00:02]} Rd1 {[%emt 0:00:02]} 44. Rc7 {[%emt 0:00:14]} Kg7 {[%emt 0:00:34]} 45. Kg3 {[%emt 0:00:04]} Kf6 {[%emt 0:00:07]} 46. Rd7 {[%emt 0:00:07]} Ke6 {[%emt 0:00:02]} 47. Rd8 {[%emt 0:00:02]} d5 {[%emt 0:00:19]} 48. exd5+ {[%emt 0:00:13]} Rxd5 {[%emt 0:00:03]} 49. Re8+ {[%emt 0:00:08]} Kf5 {[%emt 0:00:16]} 50. Re7 {[%emt 0:00:17]} Kf6 {[%emt 0:00:02]} 51. Re8 {[%emt 0:00:01]} Rd4 {[%emt 0:00:13]} 52. Kf2 {[%emt 0:00:23]} Rd2+ {[%emt 0:00:13]} 53. Kg3 {[%emt 0:00:01]} h5 {[%emt 0:00:03]} 54. h4 {[%emt 0:00:08]} Kf5 {[%emt 0:00:16]} 55. Ra8 {[%emt 0:00:17]} f6 {[%emt 0:00:12]} 56. Rf8 {[%emt 0:00:54]} Rd4 {[%emt 0:00:02]} 57. Rh8 {[%emt 0:00:11]} e4 {[%emt 0:00:07]} 58. fxe4+ {[%emt 0:00:09]} Rxe4 {[%emt 0:00:01]} 59. Ra8 {[%emt 0:00:14]} Re5 {[%emt 0:00:10]} 60. Ra4 {[%emt 0:00:10]} Re3+ {[%emt 0:00:12]} 61. Kh2 {[%emt 0:00:04]} Re4 {[%emt 0:00:04]} 62. Ra5+ {[%emt 0:00:12]} Kg4 {[%emt 0:00:09]} 63. Ra6 {[%emt 0:00:08]} Rf4 {[%emt 0:00:10]} 64. Ra2 {[%emt 0:00:15]} Rb4 {[%emt 0:00:20]} 65. Ra6 {[%emt 0:00:10]} Rf4 {[%emt 0:00:05]} 66. Ra2 {[%emt 0:00:01]} g5 {[%emt 0:00:34]} 67. hxg5 {[%emt 0:00:14]} Kxg5 {[%emt 0:00:25]} 68. Ra5+ {[%emt 0:00:13]} f5 {[%emt 0:00:01]} 69. Ra8 {[%emt 0:00:02]} Rg4 {[%emt 0:00:07]} 70. g3 {[%emt 0:00:17]} Kf6 {[%emt 0:00:36]} 71. Rh8 {[%emt 0:00:07]} Rg5 {[%emt 0:00:03]} 72. Kh3 {[%emt 0:00:05]} Kg7 {[%emt 0:00:20]} 73. Rd8 {[%emt 0:00:03]} Rg4 {[%emt 0:00:07]} 74. Rd6 {[%emt 0:00:05]} Rg6 {[%emt 0:00:18]} 75. Rd7+ {[%emt 0:00:07]} Kh6 {[%emt 0:00:02]} 76. Rf7 {[%emt 0:00:03]} Kg5 {[%emt 0:00:03]} 77. Rd7 {[%emt 0:00:05]} Re6 {[%emt 0:00:55]} 78. Rd4 {[%emt 0:00:13]} Re3 {[%emt 0:00:24]} 79. Ra4 {[%emt 0:00:08]} Re4 {[%emt 0:00:18]} 80. Ra8 {[%emt 0:00:03]} Rb4 {[%emt 0:00:23]} 81. Rg8+ {[%emt 0:00:08]} 1/2-1/2

[Event "Kupreichik Memorial Open 2018"]
[Site "Minsk"]
[Date "2018.06.23"]
[Round "11"]
[White "Kozlov, Valentin"]
[Black "Uzlavataya, Anhelina"]
[Result "0-1"]
[ECO "B03"]
[WhiteElo "1553"]
[BlackElo "1925"]
[Annotator "NA"]
[PlyCount "134"]
[EventDate "2018.06.21"]
[EventCountry "BLR"]
[SourceTitle "playchess.com"]
[Source "ChessBase"]
[SourceQuality "1"]
[TimeControl "900+10"]

1. e4 {[%emt 0:00:00]} Nf6 {[%emt 0:00:04]} 2. e5 {[%emt 0:00:00]} Nd5 {[%emt 0:00:01]} 3. d4 {[%emt 0:00:00]} d6 {[%emt 0:00:02]} 4. c4 {[%emt 0:00:10]} Nb6 {[%emt 0:00:01]} 5. exd6 {[%emt 0:00:02]} cxd6 {[%emt 0:00:02]} 6. Nf3 {[%emt 0:00:09]} g6 {[%emt 0:00:02]} 7. Nc3 {[%emt 0:00:13]} Bg7 {[%emt 0:00:02]} 8. Be3 {[%emt 0:00:06]} O-O {[%emt 0:00:14]} 9. Be2 {[%emt 0:00:07]} Nc6 {[%emt 0:00:48]} 10. O-O {[%emt 0:01:08]} e5 {[%emt 0:00:15]} 11. d5 {[%emt 0:00:16]} Ne7 {[%emt 0:00:29]} 12. Bg5 {[%emt 0:01:21]} h6 {[%emt 0:00:49]} 13. Bd2 {[%emt 0:00:15]} f5 {[%emt 0:00:09]} 14. Rc1 {[%emt 0:01:47]} e4 {[%emt 0:00:08]} 15. Nh4 {[%emt 0:00:14]} g5 {[%emt 0:00:24]} 16. c5 {[%emt 0:01:36]} dxc5 {[%emt 0:00:50]} 17. d6 {[%emt 0:00:40]} Qxd6 {[%emt 0:00:20]} 18. Nb5 {[%emt 0:00:16]} Qc6 {[%emt 0:03:19]} 19. Bb4 {[%emt 0:00:47]} gxh4 {[%emt 0:00:36]} 20. Bxc5 {[%emt 0:00:22]} Qf6 {[%emt 0:00:16]} 21. Bd4 {[%emt 0:00:43]} Qg5 {[%emt 0:00:59]} 22. Qb3+ {[%emt 0:00:38]} Kh7 {[%emt 0:00:41]} 23. Bxg7 {[%emt 0:00:17]} Qxg7 {[%emt 0:00:18]} 24. Rc7 {[%emt 0:00:36]} Nbd5 {[%emt 0:00:09]} 25. Bc4 {[%emt 0:00:20]} Nxc7 {[%emt 0:00:38]} 26. Nxc7 {[%emt 0:00:09]} Rb8 {[%emt 0:00:01]} 27. Na6 {[%emt 0:00:33]} bxa6 {[%emt 0:00:29]} 28. Qxb8 {[%emt 0:00:02]} Be6 {[%emt 0:00:27]} 29. Qb3 {[%emt 0:00:04]} Bxc4 {[%emt 0:00:04]} 30. Qxc4 {[%emt 0:00:01]} Ng6 {[%emt 0:00:35]} 31. Rd1 {[%emt 0:00:45]} Ne5 {[%emt 0:01:07]} 32. Qxa6 {[%emt 0:00:19]} Rg8 {[%emt 0:00:50]} 33. g3 {[%emt 0:00:21]} hxg3 {[%emt 0:00:15]} 34. fxg3 {[%emt 0:00:14]} Nd3 {[%emt 0:00:13]} 35. Qb5 {[%emt 0:01:43]} Qg5 {[%emt 0:01:11]} 36. Rf1 {[%emt 0:00:17]} f4 {[%emt 0:02:09]} 37. Qb7+ {[%emt 0:00:05]} Kh8 {[%emt 0:00:25]} 38. Qxe4 {[%emt 0:00:18]} fxg3 {[%emt 0:00:14]} 39. h4 {[%emt 0:01:58]} Qc5+ {[%emt 0:00:16]} 40. Kg2 {[%emt 0:00:18]} Nf2 {[%emt 0:00:56]} 41. Qf4 {[%emt 0:01:05]} Qd5+ {[%emt 0:00:16]} 42. Qf3 {[%emt 0:00:21]} Qxf3+ {[%emt 0:00:02]} 43. Kxf3 {[%emt 0:00:01]} g2 {[%emt 0:00:15]} 44. Rg1 {[%emt 0:00:01]} Nh3 {[%emt 0:00:04]} 45. Rxg2 {[%emt 0:00:03]} Rxg2 46. Kxg2 {[%emt 0:00:01]} Nf4+ {[%emt 0:00:09]} 47. Kf3 {[%emt 0:00:02]} Ng6 {[%emt 0:00:07]} 48. Kg4 {[%emt 0:00:05]} Kg7 {[%emt 0:00:05]} 49. b4 {[%emt 0:00:12]} Ne7 {[%emt 0:00:16]} 50. a4 {[%emt 0:00:06]} Kg6 {[%emt 0:00:03]} 51. b5 {[%emt 0:00:09]} h5+ {[%emt 0:00:16]} 52. Kf3 {[%emt 0:00:10]} Nd5 {[%emt 0:00:28]} 53. a5 {[%emt 0:00:04]} Kf5 {[%emt 0:00:14]} 54. Kg3 {[%emt 0:00:15]} Ke4 {[%emt 0:00:07]} 55. Kh3 {[%emt 0:00:07]} Kf3 {[%emt 0:00:05]} 56. b6 {[%emt 0:00:27]} axb6 {[%emt 0:00:07]} 57. axb6 {[%emt 0:00:04]} Nxb6 {[%emt 0:00:01]} 58. Kh2 {[%emt 0:00:06]} Kg4 {[%emt 0:00:02]} 59. Kg2 {[%emt 0:00:00]} Kxh4 {[%emt 0:00:02]} 60. Kh2 {[%emt 0:00:02]} Kg4 {[%emt 0:00:04]} 61. Kg2 {[%emt 0:00:00]} Nd5 {[%emt 0:00:05]} 62. Kh2 {[%emt 0:00:01]} Nf4 {[%emt 0:00:39]} 63. Kh1 {[%emt 0:00:04]} Kg3 {[%emt 0:00:14]} 64. Kg1 {[%emt 0:00:04]} Nh3+ {[%emt 0:00:08]} 65. Kh1 {[%emt 0:00:00]} Nf2+ {[%emt 0:00:26]} 66. Kg1 {[%emt 0:00:01]} h4 {[%emt 0:00:02]} 67. Kf1 {[%emt 0:00:02]} h3 {[%emt 0:00:02]} 0-1